bitfinex-derivatives/quotes_SOLF0:USTF0_20250808
["timestamp","ask_amount","ask_price","bid_price","bid_amount"]
[1754677024730,2.97,179.06,179.02,3.13]
[1754677024935,5.5838,179.07,179.05,9.5235313]
[1754677025131,9.34881794,179.12,179.05,6.3935313]
[1754677025323,2.97,179.13,179.1,3.13]
[1754677025528,5.5822,179.12,179.11,9.5235313]
[1754677025733,5.5822,179.12,179.11,3.13]
[1754677026035,3.01,179.14,179.11,2.97]
[1754677026434,3.04519055,179.13,179.11,2.97]
[1754677027336,3.01,179.12,179.1,6.4303751]
[1754677027536,3.01,179.11,179.1,6.4303751]
[1754677027732,3.01,179.11,179.1,0.0368438]
[1754677027938,8.5923,179.11,179.1,0.0368438]
[1754677029936,3.01,179.05,179.03,2.97]
[1754677030449,3.01,179.08,178.99,6.3935313]
[1754677030643,3.01,179.06,178.96,6.3935313]
[1754677030833,12.35881794,179.06,178.96,11.9805313]
[1754677031033,5.5861,178.99,178.96,6.3935313]
[1754677031232,8.5961,178.99,178.96,9.3635313]
[1754677031741,3.01,178.99,178.96,9.3635313]
[1754677031939,8.63529543,179.0,178.96,9.3635313]
[1754677032244,8.63529543,179.0,178.96,14.9505313]
[1754677032437,8.63529543,179.0,178.98,126.31579364]
[1754677032742,0.03929543,179.0,178.99,2.97]
[1754677034140,0.03929543,179.0,178.99,8.5561]
[1754677034340,0.03929543,179.0,178.99,2.97]
[1754677034542,3.01,179.06,178.99,2.97]
[1754677034742,5.5849,179.03,179.02,2.97]
[1754677034947,3.01,179.05,179.02,2.97]
[1754677035153,165.7869887,179.15,179.05,2.97]
[1754677035154,3.01,179.07,179.05,2.97]
[1754677035645,12.35881794,179.1,179.04,6.3935313]
[1754677035843,9.34881794,179.1,179.03,6.3935313]
[1754677036047,3.01,179.06,179.03,9.3635313]
[1754677036441,5.5845,179.05,179.04,2.97]
[1754677036641,3.01,179.08,179.05,2.97]
[1754677036841,3.01,179.08,179.05,6.3935313]
[1754677037040,9.34881794,179.14,179.08,2.97]
[1754677037246,3.01,179.14,179.12,2.97]
[1754677037447,5.582,179.12,179.11,6.3935313]
[1754677038043,8.5918,179.13,179.11,6.3935313]
[1754677039045,12.35881794,179.16,179.12,2.97]
[1754677039344,3.01,179.15,179.13,6.3935313]
[1754677041253,5.5814,179.14,179.13,9.3635313]
[1754677041453,8.5914,179.14,179.13,6.3935313]
[1754677041849,5.5817,179.13,179.11,6.3935313]
[1754677042050,3.01,179.13,179.11,6.3935313]
[1754677042253,3.01,179.14,179.11,6.3935313]
[1754677042452,9.34881794,179.14,179.11,6.3935313]
[1754677042653,3.01,179.13,179.11,6.3935313]
[1754677042856,9.34881794,179.14,179.11,6.3935313]
[1754677043050,9.34881794,179.13,179.09,6.3935313]
[1754677043244,9.34881794,179.13,179.11,6.3935313]
[1754677043449,8.5913,179.15,179.12,2.97]
[1754677043645,9.34881794,179.15,179.12,6.3935313]
[1754677043849,3.01,179.14,179.12,6.3935313]
[1754677044058,3.01,179.13,179.1,9.3635313]
[1754677044251,3.01,179.12,179.1,6.3935313]
[1754677044450,3.01,179.11,179.08,2.97]
[1754677044656,3.01,179.1,179.08,9.3635313]
[1754677044856,9.34881794,179.13,179.08,6.3935313]
[1754677045060,5.5828,179.1,179.08,6.3935313]
[1754677045253,3.01,179.09,179.08,6.3935313]
[1754677046156,9.34881794,179.12,179.09,2.97]
[1754677046457,3.01,179.1,179.07,9.3635313]
[1754677046660,3.01,179.11,179.06,6.3935313]
[1754677047050,5.5838,179.07,179.05,9.3635313]
[1754677047358,3.01,179.09,179.06,2.97]
[1754677047661,5.5826,179.1,179.08,2.97]
[1754677047856,3.01,179.11,179.09,9.3635313]
[1754677048056,8.5926,179.11,179.09,9.3635313]
[1754677048251,12.35881794,179.14,179.11,2.97]
[1754677048458,12.35881794,179.14,179.11,9.3635313]
[1754677048759,9.34881794,179.16,179.13,6.3935313]
[1754677048955,9.34881794,179.15,179.11,6.3935313]
[1754677049160,3.01,179.12,179.11,6.3935313]
[1754677049658,17.93991794,179.15,179.12,2.97]
[1754677049859,17.93991794,179.15,179.13,9.3635313]
[1754677050059,8.5911,179.15,179.13,9.3635313]
[1754677050462,8.5911,179.15,179.13,6.3935313]
[1754677051156,8.5911,179.15,179.13,9.3635313]
[1754677051157,3.01,179.15,179.13,9.3635313]
[1754677051357,12.35881794,179.18,179.13,6.3935313]
[1754677051558,3.01,179.18,179.16,2.97]
[1754677051865,9.34881794,179.2,179.15,6.3935313]
[1754677052054,9.34881794,179.2,179.19,9.3635313]
[1754677052260,12.35881794,179.21,179.19,9.3635313]
[1754677052461,8.5895,179.2,179.19,6.3935313]
[1754677052653,17.93831794,179.2,179.19,6.3935313]
[1754677052858,3.01,179.18,179.16,2.97]
[1754677053062,3.01,179.15,179.14,6.3935313]
[1754677053271,3.01,179.15,178.97,381.5535313]
[1754677053272,12.36470639,179.17,179.12,6.3935313]
[1754677053568,3.01,179.15,179.12,9.3635313]
[1754677053865,3.01,179.15,179.13,2.97]
[1754677054068,5.5809,179.16,179.12,6.3935313]
[1754677054273,3.01,179.15,179.14,6.3935313]
[1754677054470,3.01,179.14,179.12,6.3935313]
[1754677054770,3.01,179.13,179.12,6.3935313]
[1754677055272,3.01,179.14,179.12,9.3635313]
[1754677055574,12.36470639,179.16,179.1,6.3935313]
[1754677055774,3.01,179.15,179.1,14.9459313]
[1754677055974,3.01,179.15,179.1,9.3635313]
[1754677056272,9.35470639,179.17,179.12,6.3935313]
[1754677056463,2.98,179.15,179.13,3.17]
[1754677056669,5.5813,179.15,179.13,3.17]
[1754677056875,2.98,179.14,179.12,6.3935313]
[1754677057070,2.98,179.13,179.12,6.3935313]
[1754677057368,2.98,179.11,179.03,147.1]
[1754677057572,9.35470639,179.16,179.09,6.3935313]
[1754677057772,9.35470639,179.16,179.03,147.1]
[1754677057773,2.98,179.14,179.12,3.17]
[1754677058067,2.98,179.12,179.11,6.3935313]
[1754677058274,2.98,179.15,179.09,9.5635313]
[1754677059276,5.582,179.12,179.09,9.5635313]
[1754677059471,2.98,179.11,179.09,9.5635313]
[1754677059672,2.98,179.11,179.1,3.17]
[1754677059972,2.98,179.12,179.1,8.7526]
[1754677060174,2.98,179.15,179.12,3.17]
[1754677060367,2.98,179.14,179.12,3.17]
[1754677061179,8.5615,179.14,179.12,3.17]
[1754677061576,2.98,179.14,179.12,3.17]
[1754677061781,2.98,179.13,179.12,3.17]
[1754677062673,2.98,179.16,179.14,3.17]
[1754677062880,2.98,179.16,179.15,3.17]
[1754677063177,8.5611,179.15,179.13,8.7514]
[1754677063773,5.5809,179.16,179.13,5.5814]
[1754677063972,8.5609,179.16,179.14,3.17]
[1754677064474,5.5805,179.17,179.14,6.3935313]
[1754677064680,2.98,179.17,179.14,6.3935313]
[1754677064980,2.98,179.16,179.14,9.5635313]
[1754677065176,9.35470639,179.18,179.14,9.5635313]
[1754677065373,9.35470639,179.17,179.15,3.17]
[1754677065575,9.35470639,179.18,179.15,3.17]
[1754677065878,8.5608,179.16,179.15,3.17]
[1754677066077,2.98,179.16,179.15,3.17]
[1754677066277,2.98,179.16,179.14,6.3935313]
[1754677066881,8.561,179.16,179.14,9.5635313]
[1754677067079,2.98,179.16,179.14,9.5635313]
[1754677067279,2.98,179.16,179.14,15.1447313]
[1754677067480,2.98,179.16,179.14,9.5635313]
[1754677067681,8.561,179.16,179.14,9.5635313]
[1754677068888,2.98,179.16,179.14,11.9748313]
[1754677069085,9.35470639,179.19,179.15,3.17]
[1754677069385,2.98,179.16,179.15,3.17]
[1754677069585,2.98,179.16,179.14,11.9748313]
[1754677069980,2.98,179.16,179.15,3.17]
[1754677070179,8.5602,179.18,179.16,3.17]
[1754677071084,8.5602,179.18,179.16,8.7507]
[1754677071383,8.5602,179.18,179.16,3.17]
[1754677071581,2.98,179.16,179.14,9.5635313]
[1754677071777,12.33470639,179.16,179.07,3.17]
[1754677071975,2.98,179.14,179.09,6.3935313]
[1754677072377,5.5822,179.12,179.09,15.1463313]
[1754677072582,2.98,179.11,179.09,9.5635313]
[1754677072788,2.98,179.11,179.1,3.17]
[1754677072987,5.5817,179.13,179.1,8.7525]
[1754677073285,2.98,179.12,179.1,8.7525]
[1754677073486,2.98,179.11,179.09,11.9763313]
[1754677073984,5.5824,179.11,179.09,11.9763313]
[1754677074180,2.98,179.11,179.09,15.1463313]
[1754677074385,2.98,179.14,179.08,5.5831]
[1754677074588,2.98,179.13,179.07,9.5635313]
[1754677074785,9.35470639,179.13,179.07,9.5635313]
[1754677074986,2.98,179.12,179.07,9.5635313]
[1754677075388,5.5828,179.1,179.07,15.1469313]
[1754677075582,8.5628,179.1,179.07,15.1469313]
[1754677076289,2.98,179.08,179.07,6.3935313]
[1754677076484,2.98,179.08,179.07,9.5635313]
[1754677077283,5.5828,179.1,179.07,15.1468313]
[1754677077488,2.98,179.11,179.09,6.3935313]
[1754677077684,392.0,179.28,179.11,8.7521]
[1754677077685,2.98,179.13,179.11,8.7521]
[1754677078284,8.5618,179.13,179.11,3.17]
[1754677078481,8.5618,179.13,179.03,142.1]
[1754677078482,2.98,179.11,179.07,9.5635313]
[1754677078682,2.98,179.11,179.07,6.3935313]
[1754677078985,2.98,179.11,179.03,142.1]
[1754677078986,9.35470639,179.12,179.09,6.3935313]
[1754677079191,2.98,179.1,179.07,6.3935313]
[1754677079386,5.5828,179.1,179.07,11.9770313]
[1754677079689,2.98,179.08,179.07,11.9770313]
[1754677080283,2.98,179.07,179.04,3.17]
[1754677080485,12.33470639,179.08,179.03,9.5635313]
[1754677080683,2.98,179.07,179.03,9.5635313]
[1754677080893,2.98,179.06,179.04,5.5842]
[1754677081189,2.98,179.06,179.04,8.7542]
[1754677081381,4.00748869,179.05,179.04,8.7542]
[1754677083494,6.98748869,179.05,179.04,5.5842]
[1754677083688,4.00748869,179.05,179.04,8.7542]
[1754677084098,6.98748869,179.05,179.03,6.3935313]
[1754677084287,6.98748869,179.04,178.97,517.12]
[1754677084492,2.98,179.06,179.04,3.17]
[1754677084690,4.00574741,179.05,179.04,8.7545]
[1754677085492,6.98574741,179.05,179.04,3.17]
[1754677085693,6.98574741,179.05,179.03,11.9782313]
[1754677085889,4.00574741,179.04,178.98,3.17]
[1754677086093,6.98574741,179.03,179.02,5.5851]
[1754677086396,4.00574741,179.03,179.02,8.8151]
[1754677087692,7.25574741,179.03,179.02,5.5851]
[1754677088096,3.25,179.02,178.99,6.3935313]
[1754677088292,3.25,179.0,178.99,6.3935313]
[1754677088490,3.25,178.99,178.98,5.5864]
[1754677088692,7.25574741,178.99,178.98,5.5864]
[1754677088895,4.00574741,178.99,178.98,8.8164]
[1754677089089,3.25,179.04,178.98,3.23]
[1754677089288,9.35470639,179.05,178.99,6.3935313]
[1754677089494,3.25,179.02,179.0,3.23]
[1754677089793,3.25,179.02,178.99,6.3935313]
[1754677089794,3.25,179.02,179.01,8.8154]
[1754677089989,3.25,179.02,179.01,15.2089313]
[1754677090194,5.5845,179.04,179.02,5.5849]
[1754677090195,3.25,179.04,179.02,5.5849]
[1754677090500,3.25,179.04,179.02,8.8149]
[1754677090700,3.25,179.04,179.02,12.74490849]
[1754677091200,3.25,179.03,179.02,3.93000849]
[1754677092098,8.8348,179.03,179.02,3.93000849]
[1754677092799,3.25,179.03,179.02,3.93000849]
[1754677093296,3.25,179.03,179.02,9.51510849]
[1754677093495,3.25,179.05,179.04,3.23]
[1754677093693,12.60470639,179.09,179.05,3.23]
[1754677093894,12.60470639,179.1,179.08,3.93000849]
[1754677094099,3.25,179.1,179.09,3.23]
[1754677094495,3.25,179.1,179.09,8.813]
[1754677094692,3.25,179.1,179.09,6.39887038]
[1754677094895,3.25,179.1,179.09,9.62887038]
[1754677095104,3.25,179.11,179.09,15.21157038]
[1754677095806,3.25,179.1,179.09,6.39887038]
[1754677096005,3.25,179.1,179.09,9.62887038]
[1754677096200,3.25,179.12,179.09,9.62887038]
[1754677096398,3.25,179.12,179.09,15.21157038]
[1754677097003,3.25,179.12,179.11,6.39887038]
[1754677097503,3.25,179.12,179.11,11.98117038]
[1754677097701,3.25,179.12,179.11,9.62887038]
[1754677097901,3.25,179.12,179.11,6.39887038]
[1754677098408,3.25,179.11,179.09,8.8129]
[1754677098613,3.25,179.11,179.1,6.39887038]
[1754677099611,9.35470639,179.14,179.12,3.23]
[1754677099804,3.25,179.14,179.13,6.39887038]
[1754677100809,3.25,179.14,179.04,3.23]
[1754677101010,3.25,179.14,179.13,6.39887038]
[1754677101203,7.16579255,179.14,179.13,6.39887038]
[1754677101814,12.74719255,179.14,179.13,6.39887038]
[1754677102010,3.25,179.13,179.08,6.39887038]
[1754677102209,9.36008994,179.11,179.08,6.39887038]
[1754677102410,3.25,179.09,179.08,6.39887038]
[1754677102612,3.91579255,179.09,179.08,9.62887038]
[1754677102911,3.91579255,179.09,179.08,15.21217038]
[1754677104212,9.36008994,179.14,179.08,6.39887038]
[1754677104414,3.25,179.14,179.13,6.39887038]
[1754677104810,12.61008994,179.14,179.13,6.39887038]
[1754677106916,3.25,179.14,179.13,6.39887038]
[1754677108615,3.25,179.14,179.13,11.98057038]
[1754677109010,12.61008994,179.15,179.13,15.21057038]
[1754677109315,3.25,179.14,179.13,15.21057038]
[1754677109509,3.25,179.14,179.13,11.98057038]
[1754677109711,3.25,179.14,179.12,6.39887038]
[1754677110009,3.25,179.13,179.12,6.39887038]
[1754677110702,3.25,179.13,179.12,11.98087038]
[1754677111516,3.25,179.13,179.09,3.23]
[1754677111708,3.25,179.13,179.1,6.39887038]
[1754677112113,3.25,179.12,179.1,9.62887038]
[1754677112308,3.25,179.12,179.11,8.8123]
[1754677112612,3.25,179.13,179.12,3.23]
[1754677112916,3.25,179.13,179.12,9.62887038]
[1754677113118,3.25,179.13,179.12,15.21087038]
[1754677115520,3.25,179.16,179.13,3.23]
[1754677115709,3.25,179.15,179.14,9.62887038]
[1754677116519,3.2,179.16,179.14,9.62887038]
[1754677116725,3.2,179.16,179.15,3.92392071]
[1754677117322,3.2,179.15,179.13,5.5815]
[1754677117524,3.2,179.15,179.14,3.92392071]
[1754677119524,8.7811,179.15,179.14,3.92392071]
[1754677119720,3.2,179.14,179.12,3.92392071]
[1754677119922,3.2,179.13,179.12,9.50592071]
[1754677120120,3.2,179.13,179.12,12.73592071]
[1754677120518,14.94147387,179.16,179.12,12.73592071]
[1754677120519,3.2,179.15,179.13,8.8116]
[1754677120714,3.2,179.15,179.14,3.92392071]
[1754677121619,12.56047387,179.15,179.14,3.92392071]
[1754677122319,3.2,179.15,179.14,3.92392071]
[1754677122516,3.2,179.15,179.14,7.15392071]
[1754677122719,3.2,179.16,179.15,3.23]
[1754677122919,3.2,179.16,179.15,8.8111]
[1754677123321,3.2,179.16,179.15,3.23]
[1754677123923,9.36047387,179.18,179.15,3.23]
[1754677123924,12.56047387,179.18,179.15,3.23]
[1754677124124,12.56047387,179.18,179.17,7.15392071]
[1754677124626,9.35366342,179.2,179.17,7.15392071]
[1754677124820,3.2,179.22,179.2,3.23]
[1754677125025,3.2,179.22,179.21,3.92392071]
[1754677126029,3.2,179.22,179.17,3.23]
[1754677126329,3.2,179.22,179.2,3.92392071]
[1754677126525,5.579,179.22,179.2,3.92392071]
[1754677126724,3.2,179.21,179.2,3.92392071]
[1754677127020,3.2,179.21,179.18,3.92392071]
[1754677127226,3.2,179.21,179.09,3.23]
[1754677127421,3.92392071,179.17,179.08,3.92392071]
[1754677127622,3.2,179.16,179.08,3.92392071]
[1754677127820,5.5816,179.14,179.08,3.92392071]
[1754677128126,3.2,179.13,179.09,3.23]
[1754677128428,3.2,179.12,179.1,5.5824]
[1754677128629,3.2,179.12,179.09,3.23]
[1754677129021,3.2,179.11,179.08,3.92392071]
[1754677129324,3.2,179.11,179.1,3.23]
[1754677129917,3.2,179.11,179.1,8.8126]
[1754677130224,3.2,179.11,179.09,12.59]
[1754677130528,12.70652071,179.1,179.09,9.29029114]
[1754677130727,12.70652071,179.1,179.09,6.03029114]
[1754677130928,12.70652071,179.1,179.09,3.21029114]
[1754677131131,12.70652071,179.1,179.09,9.114e-05]
[1754677131425,3.92392071,179.1,179.03,5.5848]
[1754677131628,12.4646887,179.12,179.02,3.92392071]
[1754677131929,3.92392071,179.1,179.08,0.03982903]
[1754677132228,3.92392071,179.1,179.03,3.23]
[1754677132628,3.92392071,179.1,179.01,3.23]
[1754677132827,3.92392071,179.1,179.03,3.23]
[1754677133135,5.583,179.09,179.03,3.23]
[1754677133428,3.92392071,179.11,179.03,3.23]
[1754677134230,5.583,179.09,179.05,5.5839]
[1754677134431,3.92392071,179.11,179.02,3.92392071]
[1754677134732,3.92392071,179.12,179.08,3.23]
[1754677135028,3.92392071,179.12,179.06,3.23]
[1754677135426,5.5831,179.09,179.06,3.23]
[1754677135631,5.5831,179.09,179.07,3.23]
[1754677136327,3.92392071,179.12,179.04,3.92392071]
[1754677136525,16.38860941,179.14,179.09,3.23]
[1754677136832,3.92392071,179.14,179.1,3.23]
[1754677137033,5.5821,179.12,179.1,3.23]
[1754677137534,5.5823,179.11,179.1,3.23]
[1754677140125,16.38860941,179.14,179.02,3.23]
[1754677140325,19.35531027,179.19,178.92,3.92392071]
[1754677140326,3.92392071,179.07,179.03,3.23]
[1754677140633,3.92392071,179.06,179.02,3.23]
[1754677140828,3.92392071,179.08,179.01,3.23]
[1754677141335,3.92392071,179.1,179.03,3.23]
[1754677141528,3.92392071,179.08,179.01,3.23]
[1754677141725,3.92392071,179.04,178.96,120.77608336]
[1754677141933,3.92392071,179.02,178.96,120.77608336]
[1754677142137,3.92392071,179.02,178.97,3.23]
[1754677142325,3.92392071,179.04,178.98,3.23]
[1754677142735,3.92392071,179.04,178.98,8.8161]
[1754677143033,3.92392071,179.04,178.99,3.23]
[1754677143435,3.92392071,179.04,179.0,3.23]
[1754677143636,3.92392071,179.04,178.97,3.23]
[1754677144038,3.92392071,179.02,178.98,3.23]
[1754677145037,5.5861,178.99,178.98,3.23]
[1754677149442,5.5866,178.98,178.96,3.18]
[1754677149638,3.92392071,178.99,178.93,3.18]
[1754677149945,3.92392071,178.97,178.91,3.18]
[1754677150531,12.4646887,179.05,178.91,3.92392071]
[1754677150742,3.92392071,179.02,178.95,3.18]
[1754677151244,3.92392071,179.04,178.96,3.92392071]
[1754677151432,3.92392071,179.04,178.97,3.18]
[1754677152234,5.5858,179.0,178.97,3.18]
[1754677152545,3.92392071,179.04,178.97,3.18]
[1754677153047,3.92392071,179.02,178.97,3.18]
[1754677153942,3.92392071,179.02,178.95,3.18]
[1754677154140,12.4646887,179.08,178.95,3.18]
[1754677154141,3.92392071,179.0,178.95,3.18]
[1754677154845,5.587,178.96,178.95,3.18]
[1754677155240,11.1677,179.07,178.95,3.18]
[1754677155241,3.92392071,179.02,178.96,3.18]
[1754677155544,5.5866,178.98,178.96,3.18]
[1754677155849,3.92392071,179.0,178.86,3.18]
[1754677156049,11.1682,179.06,178.91,5.5885]
[1754677156050,3.92392071,178.98,178.91,5.5885]
[1754677156244,3.92392071,178.98,178.92,3.18]
[1754677156948,3.92392071,179.0,178.93,3.18]
[1754677157448,3.92392071,179.02,178.95,3.18]
[1754677157957,5.5866,178.98,178.95,3.18]
[1754677158148,3.92392071,179.02,178.95,3.18]
[1754677158648,3.92392071,179.02,178.96,3.18]
[1754677158852,3.92392071,179.04,178.96,3.18]
[1754677159044,3.92392071,179.04,178.97,3.18]
[1754677159945,11.1655,179.1,178.99,3.18]
[1754677160144,3.92392071,179.07,178.99,3.18]
[1754677160545,5.5854,179.02,178.99,3.18]
[1754677160847,3.92392071,179.07,178.99,3.18]
[1754677161048,5.5854,179.02,178.99,3.18]
[1754677161244,11.1655,179.1,178.99,3.18]
[1754677161550,3.92392071,179.11,179.03,3.18]
[1754677161750,379.16392071,179.12,179.05,3.18]
[1754677161944,3.92392071,179.1,179.03,3.18]
[1754677162141,3.85989524,179.09,179.03,3.18]
[1754677162342,3.85989524,179.08,179.02,3.92392071]
[1754677162555,3.85989524,179.07,179.05,3.18]
[1754677162752,9.44379524,179.06,179.05,3.18]
[1754677164251,9.44379524,179.06,179.05,0.00988401]
[1754677164454,12.56379524,179.06,179.05,0.00988401]
[1754677164653,5.5847,179.04,179.02,3.92392071]
[1754677164956,3.85989524,179.03,179.02,3.92392071]
[1754677165150,9.44469524,179.03,179.02,3.92392071]
[1754677165352,3.85989524,179.03,179.02,3.92392071]
[1754677166159,3.12,179.1,179.02,3.92392071]
[1754677166355,3.12,179.11,179.08,3.18]
[1754677166553,141.64,179.14,179.09,3.92392071]
[1754677166858,3.12,179.12,179.09,3.92392071]
[1754677167058,3.12,179.12,179.09,7.10392071]
[1754677167059,5.5828,179.1,179.09,7.10392071]
[1754677169568,5.5821,179.12,179.1,3.18]
[1754677169866,3.12,179.19,179.13,3.18]
[1754677170065,3.12,179.19,179.1,3.92392071]
[1754677170066,3.12,179.19,179.15,3.92392071]
[1754677170262,379.28392071,179.22,179.16,3.18]
[1754677170263,3.12,179.21,179.16,3.18]
[1754677170665,5.5805,179.17,179.16,3.18]
[1754677171062,3.12,179.17,179.15,3.92392071]
[1754677171263,5.5808,179.16,179.15,3.18]
[1754677171460,3.12,179.19,179.15,3.92392071]
[1754677171769,3.12,179.19,179.1,3.92392071]
[1754677172067,3.12,179.21,179.14,3.92392071]
[1754677172267,3.12,179.21,179.14,7.10392071]
[1754677172861,5.5811,179.15,179.14,7.10392071]
[1754677174368,5.5811,179.15,179.14,2.91676352]
[1754677174975,5.5822,179.12,179.1,3.92392071]
[1754677175275,3.12,179.18,179.1,3.92392071]
[1754677175467,3.12,179.19,179.13,3.92392071]
[1754677175666,3.12,179.19,179.15,3.92392071]
[1754677176074,0.03596444,179.18,179.15,3.92392071]
[1754677176260,5.5808,179.16,179.15,3.92392071]
[1754677176462,5.5808,179.16,179.15,6.94392071]
[1754677178469,5.5811,179.15,179.14,0.03944994]
[1754677178772,8.6711,179.15,179.14,0.03944994]
[1754677179074,8.6711,179.15,179.14,3.05944994]
[1754677179277,8.6711,179.15,179.14,4.994e-05]
[1754677181766,5.5811,179.15,179.14,3.02004994]
[1754677182875,0.03596444,179.18,179.14,3.02004994]
[1754677183075,3.09,179.17,179.14,4.994e-05]
[1754677183271,5.5811,179.15,179.14,3.02004994]
[1754677184272,5.5809,179.16,179.14,3.02004994]
[1754677184579,3.09,179.17,179.15,3.02]
[1754677184876,0.03596444,179.18,179.15,3.92392071]
[1754677185078,3.09,179.25,179.17,6.94392071]
[1754677185375,5.5789,179.22,179.21,3.92392071]
[1754677185575,3.09,179.25,179.21,3.92392071]
[1754677185972,5.5785,179.24,179.23,3.02]
[1754677186480,3.09,179.28,179.23,3.92392071]
[1754677186681,141.42,179.3,179.23,3.92392071]
[1754677186682,3.09,179.27,179.24,3.02]
[1754677186981,5.5777,179.26,179.25,3.02]
[1754677187773,5.5783,179.24,179.23,6.94392071]
[1754677188172,145.32392071,179.31,179.22,3.92392071]
[1754677188173,141.4,179.31,179.22,3.92392071]
[1754677188371,3.09,179.26,179.24,3.02]
[1754677188576,5.5782,179.25,179.24,3.02]
[1754677189475,5.5777,179.26,179.24,6.94392071]
[1754677189782,5.5777,179.26,179.25,3.02]
[1754677190179,144.47,179.31,179.25,3.02]
[1754677190378,144.47,179.31,179.19,3.92392071]
[1754677190379,3.09,179.3,179.28,3.02]
[1754677190584,3.09,179.29,179.28,3.02]
[1754677190776,3.09,179.29,179.26,6.94392071]
[1754677190974,3.09,179.29,179.27,3.02]
[1754677191175,5.577,179.28,179.27,3.02]
[1754677192874,5.577,179.28,179.27,6.94392071]
[1754677193174,12.4646887,179.41,179.28,3.02]
[1754677193380,3.09,179.4,179.28,3.02]
[1754677193579,3.09,179.35,179.28,3.02]
[1754677194076,141.34,179.38,179.32,3.92392071]
[1754677194276,3.92392071,179.4,179.34,3.02]
[1754677194577,5.5767,179.29,179.24,5.5782]
[1754677194880,5.5767,179.29,179.27,3.92392071]
[1754677195084,5.5767,179.29,179.28,3.02]
[1754677196179,3.92392071,179.34,179.25,3.92392071]
[1754677196484,3.92392071,179.34,179.27,3.92392071]
[1754677196781,3.09,179.33,179.28,3.02]
[1754677196975,3.09,179.35,179.3,3.02]
[1754677197279,7.01392071,179.4,179.32,3.02]
[1754677197482,3.09,179.39,179.32,3.02]
[1754677197683,7.01392071,179.42,179.34,3.02]
[1754677197978,5.5745,179.37,179.34,3.02]
[1754677198183,3.09,179.41,179.35,3.92392071]
[1754677198481,3.09,179.41,179.36,3.02]
[1754677198682,5.5743,179.37,179.36,3.02]
[1754677198883,3.09,179.39,179.33,3.02]
[1754677199081,3.09,179.41,179.34,3.02]
[1754677199273,7.01392071,179.41,179.35,3.02]
[1754677199473,7.01392071,179.41,179.34,3.92392071]
[1754677199474,3.09,179.4,179.34,6.94392071]
[1754677199675,3.09,179.4,179.34,3.02]
[1754677199875,5.5745,179.37,179.34,3.02]
[1754677200074,3.09,179.4,179.35,6.94392071]
[1754677200280,3.09,179.37,179.29,3.02]
[1754677200484,3.09,179.39,179.32,3.02]
[1754677200881,5.5755,179.33,179.32,3.02]
[1754677201081,3.09,179.37,179.31,3.92392071]
[1754677201280,3.09,179.37,179.32,3.02]
[1754677201886,3.09,179.42,179.32,3.02]
[1754677202187,3.09,179.39,179.33,3.02]
[1754677202384,5.5752,179.34,179.33,3.02]
[1754677202591,3.09,179.35,179.28,3.02]
[1754677202789,3.09,179.33,179.26,3.02]
[1754677202990,5.5768,179.29,179.26,3.02]
[1754677203187,3.92392071,179.34,179.24,5.5781]
[1754677203188,3.09,179.3,179.27,3.02]
[1754677203487,3.92392071,179.32,179.28,3.02]
[1754677203685,3.92392071,179.32,179.24,3.92392071]
[1754677203686,3.09,179.29,179.24,3.02]
[1754677203887,3.92392071,179.37,179.24,3.02]
[1754677204082,5.5776,179.27,179.24,3.02]